[Event "GER-ch Youth U10W 2020"]
[Site "Willingen"]
[Date "2020.10.30"]
[Round "5.12"]
[White "Le, Thi An"]
[Black "Zhou, Jenny"]
[Result "1-0"]
[ECO "C54"]
[WhiteElo "976"]
[BlackElo "1131"]
[Annotator "NA RC"]
[PlyCount "76"]
[EventDate "2020.10.27"]
[EventType "swiss"]
[EventRounds "7"]
[EventCountry "GER"]
[SourceTitle "playchess.com"]
[Source "ChessBase"]
[SourceQuality "1"]
[TimeControl "40/4500+30:900+30"]

1. e4 {[%emt 0:00:00]} e5 {[%emt 0:00:00]} 2. Nf3 {[%emt 0:00:00]} Nc6 {[%emt 0:00:00]} 3. Bc4 {[%emt 0:00:00]} Bc5 {[%emt 0:00:00]} 4. c3 {[%emt 0:00:00]} Nf6 {[%emt 0:00:00]} 5. d4 {[%emt 0:00:00]} exd4 {[%emt 0:00:01]} 6. cxd4 {[%emt 0:00:00]} Bb4+ {[%emt 0:00:04]} 7. Bd2 {[%emt 0:00:03]} Bxd2+ {[%emt 0:00:19]} 8. Nbxd2 {[%emt 0:00:10]} d5 {[%emt 0:00:04]} 9. exd5 {[%emt 0:00:15]} Nxd5 {[%emt 0:00:06]} 10. Qb3 {[%emt 0:00:25]} Nce7 {[%emt 0:00:07]} 11. O-O {[%emt 0:00:36]} O-O {[%emt 0:00:04]} 12. Rfe1 {[%emt 0:00:37]} c6 {[%emt 0:00:08]} 13. Re2 {[%emt 0:02:29]} Nb6 {[%emt 0:03:02]} 14. Rae1 {[%emt 0:02:03]} Ned5 {[%emt 0:05:20]} 15. Bd3 Be6 {[%emt 0:05:10]} 16. Qc2 {[%emt 0:06:07]} h6 {[%emt 0:01:28]} 17. g3 {[%emt 0:03:32]} Nb4 {[%emt 0:01:40]} 18. Qb1 {[%emt 0:01:52]} Nxd3 19. Qxd3 {[%emt 0:01:45]} c5 {[%emt 0:03:33]} 20. a3 {[%emt 0:00:57]} c4 {[%emt 0:01:29]} 21. Qc2 {[%emt 0:00:39]} Qd7 22. Nh4 {[%emt 0:02:00]} Qd5 {[%emt 0:07:07]} 23. Ndf3 Bg4 {[%emt 0:02:23]} 24. Re3 {[%emt 0:02:24]} Rac8 {[%emt 0:02:59]} 25. Qb1 {[%emt 0:03:09]} Na4 {[%emt 0:02:27]} 26. b4 c3 {[%emt 0:01:16]} 27. Qc2 {[%emt 0:06:12]} b5 {[%emt 0:01:25]} 28. Re5 {[%emt 0:02:24]} Qb7 29. Re7 {[%emt 0:00:24]} Qd5 {[%emt 0:04:11]} 30. R1e5 {[%emt 0:01:33]} Qc6 {[%emt 0:01:37]} 31. Rc5 {[%emt 0:01:29]} Nxc5 {[%emt 0:00:31]} 32. dxc5 {[%emt 0:01:19]} Bxf3 {[%emt 0:00:38]} 33. Nxf3 {[%emt 0:01:17]} Qxf3 34. Re3 {[%emt 0:01:11]} Qc6 {[%emt 0:01:06]} 35. Qxc3 {[%emt 0:00:54]} Rfe8 {[%emt 0:00:31]} 36. Rd3 {[%emt 0:01:10]} Rcd8 {[%emt 0:00:28]} 37. Rxd8 {[%emt 0:00:44]} Rxd8 {[%emt 0:00:52]} 38. Qc2 {[%emt 0:01:04]} Qf3 {[%emt 0:00:18]} 1-0

[Event "GER-ch Youth U10W 2020"]
[Site "Willingen"]
[Date "2020.10.30"]
[Round "5.13"]
[White "Becker, Hanna Charlotte"]
[Black "Le, Thao-Linh"]
[Result "1-0"]
[ECO "D07"]
[WhiteElo "853"]
[BlackElo "1121"]
[Annotator "NA RC"]
[PlyCount "45"]
[EventDate "2020.10.27"]
[EventType "swiss"]
[EventRounds "7"]
[EventCountry "GER"]
[SourceTitle "playchess.com"]
[Source "ChessBase"]
[SourceQuality "1"]
[TimeControl "40/4500+30:900+30"]

1. d4 {[%emt 0:00:00]} d5 {[%emt 0:00:56]} 2. c4 {[%emt 0:00:00]} Nc6 {[%emt 0:01:49]} 3. cxd5 {[%emt 0:00:54]} Qxd5 {[%emt 0:03:42]} 4. Nf3 {[%emt 0:00:59]} e5 {[%emt 0:03:13]} 5. Nc3 {[%emt 0:01:03]} Bb4 {[%emt 0:00:16]} 6. a3 {[%emt 0:01:05]} Bxc3+ {[%emt 0:01:10]} 7. bxc3 {[%emt 0:00:43]} Bg4 {[%emt 0:01:44]} 8. Be3 {[%emt 0:03:00]} Bxf3 {[%emt 0:04:41]} 9. exf3 {[%emt 0:00:58]} Nf6 {[%emt 0:01:21]} 10. dxe5 {[%emt 0:01:52]} Qxe5 {[%emt 0:00:44]} 11. Bb5 {[%emt 0:01:33]} Qxb5 {[%emt 0:02:06]} 12. Rb1 {[%emt 0:01:55]} Qe5 {[%emt 0:01:19]} 13. O-O {[%emt 0:02:14]} O-O {[%emt 0:01:36]} 14. Rxb7 {[%emt 0:00:27]} Rab8 {[%emt 0:01:33]} 15. Bd4 {[%emt 0:01:05]} Qd6 {[%emt 0:02:41]} 16. Rxb8 {[%emt 0:00:51]} Rxb8 {[%emt 0:00:16]} 17. Qa4 {[%emt 0:00:47]} Nxd4 {[%emt 0:01:18]} 18. cxd4 {[%emt 0:00:33]} Qb6 {[%emt 0:00:24]} 19. h3 {[%emt 0:00:28]} Rd8 {[%emt 0:01:36]} 20. Rd1 {[%emt 0:00:32]} Nd5 {[%emt 0:00:44]} 21. Rd3 {[%emt 0:02:18]} Nf4 {[%emt 0:00:50]} 22. Re3 {[%emt 0:00:37]} Rxd4 {[%emt 0:01:31]} 23. Re6 1-0

[Event "GER-ch Youth U10W 2020"]
[Site "Willingen"]
[Date "2020.10.30"]
[Round "5.15"]
[White "Yan, Jenny"]
[Black "Wolf, Anna"]
[Result "1/2-1/2"]
[ECO "C00"]
[WhiteElo "952"]
[BlackElo "1098"]
[Annotator "NA RC"]
[PlyCount "148"]
[EventDate "2020.10.27"]
[EventType "swiss"]
[EventRounds "7"]
[EventCountry "GER"]
[SourceTitle "playchess.com"]
[Source "ChessBase"]
[SourceQuality "1"]
[TimeControl "40/4500+30:900+30"]

1. e4 {[%emt 0:00:00]} e6 {[%emt 0:00:00]} 2. b3 {[%emt 0:00:02]} d5 {[%emt 0:00:00]} 3. Bb2 {[%emt 0:00:17]} Nc6 {[%emt 0:00:40]} 4. exd5 {[%emt 0:00:57]} exd5 {[%emt 0:00:13]} 5. Nf3 {[%emt 0:01:17]} Bd6 {[%emt 0:00:31]} 6. Bxg7 {[%emt 0:00:51]} f6 {[%emt 0:01:08]} 7. Bxh8 {[%emt 0:00:36]} b6 {[%emt 0:00:38]} 8. Qe2+ {[%emt 0:00:49]} Qe7 {[%emt 0:00:23]} 9. Qxe7+ {[%emt 0:00:13]} Bxe7 {[%emt 0:00:17]} 10. Bb5 {[%emt 0:00:52]} Bb7 {[%emt 0:00:21]} 11. Nd4 {[%emt 0:01:23]} Kd7 {[%emt 0:00:39]} 12. Nc3 {[%emt 0:00:47]} Re8 {[%emt 0:00:15]} 13. O-O {[%emt 0:00:16]} Bc5 {[%emt 0:00:29]} 14. Nxc6 {[%emt 0:00:50]} Bxc6 {[%emt 0:00:17]} 15. Rae1 {[%emt 0:00:42]} Rf8 16. Bxc6+ Kxc6 {[%emt 0:02:02]} 17. Re6+ {[%emt 0:01:35]} Kd7 {[%emt 0:00:25]} 18. Rfe1 {[%emt 0:00:31]} Rf7 19. Nxd5 Be7 {[%emt 0:04:31]} 20. c4 {[%emt 0:03:16]} c6 {[%emt 0:00:52]} 21. Nb4 {[%emt 0:01:35]} Bxb4 {[%emt 0:00:45]} 22. R1e2 {[%emt 0:02:34]} Bd6 {[%emt 0:00:57]} 23. Re8 {[%emt 0:01:10]} Ne7 {[%emt 0:01:20]} 24. Ra8 {[%emt 0:01:03]} a5 {[%emt 0:00:11]} 25. Ra7+ {[%emt 0:01:38]} Kc8 {[%emt 0:00:12]} 26. Ra8+ {[%emt 0:02:31]} Bb8 {[%emt 0:00:16]} 27. Rxb8+ {[%emt 0:03:20]} Kxb8 {[%emt 0:00:13]} 28. Bxf6 {[%emt 0:00:22]} Nf5 {[%emt 0:00:41]} 29. Re8+ {[%emt 0:01:03]} Kc7 {[%emt 0:00:19]} 30. Bb2 {[%emt 0:01:00]} Nd6 {[%emt 0:01:42]} 31. Re2 {[%emt 0:00:52]} Nb7 {[%emt 0:01:50]} 32. h3 {[%emt 0:00:19]} Nc5 {[%emt 0:00:22]} 33. d4 {[%emt 0:00:46]} Na6 {[%emt 0:00:11]} 34. Re6 {[%emt 0:01:43]} Nb4 {[%emt 0:00:17]} 35. a4 {[%emt 0:01:31]} Rd7 {[%emt 0:00:21]} 36. Rh6 {[%emt 0:01:07]} Nd3 {[%emt 0:00:46]} 37. Ba1 {[%emt 0:01:02]} Nc1 {[%emt 0:00:16]} 38. f4 {[%emt 0:01:02]} Nxb3 {[%emt 0:00:17]} 39. Bb2 {[%emt 0:00:22]} Nd2 {[%emt 0:00:17]} 40. c5 {[%emt 0:00:33]} Kb7 {[%emt 0:00:46]} 41. cxb6 {[%emt 0:15:41]} Rf7 {[%emt 0:15:36]} 42. g3 {[%emt 0:01:04]} Ne4 {[%emt 0:00:41]} 43. Kg2 {[%emt 0:01:11]} Rg7 {[%emt 0:00:22]} 44. d5 {[%emt 0:01:35]} Rxg3+ {[%emt 0:00:27]} 45. Kh2 {[%emt 0:00:29]} cxd5 {[%emt 0:00:30]} 46. Rxh7+ {[%emt 0:00:50]} Kxb6 {[%emt 0:00:07]} 47. Re7 {[%emt 0:00:29]} Rb3 {[%emt 0:00:33]} 48. Bd4+ {[%emt 0:01:07]} Kc6 {[%emt 0:00:14]} 49. Ra7 {[%emt 0:01:45]} Rb4 {[%emt 0:02:53]} 50. Ra6+ {[%emt 0:02:10]} Kd7 {[%emt 0:00:49]} 51. Bb6 {[%emt 0:01:13]} Rxa4 {[%emt 0:00:51]} 52. Rxa5 {[%emt 0:00:33]} Rxa5 {[%emt 0:00:55]} 53. Bxa5 {[%emt 0:00:13]} d4 {[%emt 0:00:11]} 54. Kg2 {[%emt 0:00:14]} Ke6 {[%emt 0:00:22]} 55. Kf3 {[%emt 0:01:09]} Kf5 {[%emt 0:01:16]} 56. h4 {[%emt 0:00:41]} Nc3 {[%emt 0:00:55]} 57. Bb6 {[%emt 0:01:24]} d3 {[%emt 0:01:21]} 58. Be3 {[%emt 0:00:18]} Nd5 59. Bd2 Ne7 {[%emt 0:01:48]} 60. h5 {[%emt 0:01:07]} Ng8 {[%emt 0:00:31]} 61. Bc1 {[%emt 0:00:59]} Nf6 {[%emt 0:00:26]} 62. h6 {[%emt 0:01:26]} Kg6 {[%emt 0:00:16]} 63. h7 {[%emt 0:00:22]} Nxh7 {[%emt 0:00:09]} 64. Ke4 {[%emt 0:00:32]} Nf6+ {[%emt 0:00:19]} 65. Ke5 {[%emt 0:00:52]} Ng4+ {[%emt 0:00:50]} 66. Ke4 {[%emt 0:00:28]} Kf6 {[%emt 0:00:20]} 67. Kxd3 {[%emt 0:00:48]} Kf5 {[%emt 0:00:15]} 68. Ke2 {[%emt 0:00:33]} Nh6 {[%emt 0:00:31]} 69. Kf3 {[%emt 0:00:12]} Ng8 70. Kg3 Nf6 {[%emt 0:01:12]} 71. Bb2 {[%emt 0:00:56]} Nd5 {[%emt 0:00:09]} 72. Be5 {[%emt 0:00:36]} Ne3 {[%emt 0:00:37]} 73. Kf3 {[%emt 0:00:17]} Nc4 {[%emt 0:00:17]} 74. Bb8 {[%emt 0:00:36]} Nd2+ {[%emt 0:20:16]} 1/2-1/2

[Event "GER-ch Youth U10W 2020"]
[Site "Willingen"]
[Date "2020.10.30"]
[Round "5.16"]
[White "Rössling, Laura Marie"]
[Black "Jäger, Viktoria"]
[Result "1-0"]
[ECO "C50"]
[WhiteElo "937"]
[BlackElo "1114"]
[Annotator "NA RC"]
[PlyCount "49"]
[EventDate "2020.10.27"]
[EventType "swiss"]
[EventRounds "7"]
[EventCountry "GER"]
[SourceTitle "playchess.com"]
[Source "ChessBase"]
[SourceQuality "1"]
[TimeControl "40/4500+30:900+30"]

1. e4 {[%emt 0:00:00]} e5 {[%emt 0:00:00]} 2. Nf3 {[%emt 0:00:00]} Nc6 {[%emt 0:00:00]} 3. Bc4 {[%emt 0:00:02]} Nd4 {[%emt 0:01:07]} 4. Nxe5 {[%emt 0:02:41]} Qg5 {[%emt 0:01:34]} 5. Ng4 {[%emt 0:07:31]} d5 {[%emt 0:00:16]} 6. Be2 {[%emt 0:01:48]} Nf6 {[%emt 0:02:22]} 7. d3 {[%emt 0:06:57]} Qg6 {[%emt 0:02:58]} 8. Ne3 {[%emt 0:09:50]} Bd6 {[%emt 0:03:52]} 9. g3 {[%emt 0:05:43]} Bh3 {[%emt 0:00:20]} 10. Nc3 {[%emt 0:06:41]} O-O-O {[%emt 0:02:02]} 11. b3 {[%emt 0:02:16]} Kb8 {[%emt 0:04:31]} 12. exd5 {[%emt 0:03:25]} Bb4 {[%emt 0:01:07]} 13. Bd2 {[%emt 0:03:28]} Nf5 {[%emt 0:03:22]} 14. g4 {[%emt 0:03:27]} Ne7 {[%emt 0:07:32]} 15. Rg1 {[%emt 0:02:35]} h6 {[%emt 0:00:52]} 16. Rg3 {[%emt 0:01:44]} Bxc3 {[%emt 0:01:27]} 17. Bxc3 {[%emt 0:01:00]} Nexd5 {[%emt 0:00:21]} 18. Bxf6 {[%emt 0:01:38]} Qxf6 {[%emt 0:01:06]} 19. Nxd5 {[%emt 0:01:27]} Rxd5 {[%emt 0:00:37]} 20. Rxh3 {[%emt 0:01:14]} Re8 {[%emt 0:01:40]} 21. Rb1 {[%emt 0:02:18]} Qc3+ {[%emt 0:01:41]} 22. Kf1 {[%emt 0:01:12]} Rde5 {[%emt 0:00:46]} 23. Qe1 {[%emt 0:01:26]} Qxc2 {[%emt 0:00:40]} 24. Re3 {[%emt 0:01:31]} Qc3 {[%emt 0:01:30]} 25. Qxc3 {[%emt 0:00:34]} 1-0

[Event "GER-ch Youth U10W 2020"]
[Site "Willingen"]
[Date "2020.10.30"]
[Round "5.17"]
[White "Mehner, Clara"]
[Black "Abram, Kristina-Maria"]
[Result "0-1"]
[ECO "C50"]
[WhiteElo "1244"]
[BlackElo "1038"]
[Annotator "NA RC"]
[PlyCount "120"]
[EventDate "2020.10.27"]
[EventType "swiss"]
[EventRounds "7"]
[EventCountry "GER"]
[SourceTitle "playchess.com"]
[Source "ChessBase"]
[SourceQuality "1"]
[TimeControl "40/4500+30:900+30"]

1. e4 {[%emt 0:00:00]} e5 {[%emt 0:00:00]} 2. Nf3 {[%emt 0:00:00]} Nc6 {[%emt 0:00:00]} 3. Bc4 {[%emt 0:00:00]} b6 {[%emt 0:00:05]} 4. d3 {[%emt 0:00:41]} h6 {[%emt 0:00:44]} 5. c3 {[%emt 0:02:18]} Bb7 {[%emt 0:01:30]} 6. Bb3 {[%emt 0:04:45]} Nf6 {[%emt 0:02:32]} 7. Nbd2 {[%emt 0:02:05]} Bc5 {[%emt 0:04:00]} 8. O-O {[%emt 0:04:14]} Qe7 {[%emt 0:02:26]} 9. h3 {[%emt 0:09:46]} O-O-O {[%emt 0:03:07]} 10. c4 {[%emt 0:02:12]} Rhg8 {[%emt 0:01:31]} 11. Re1 {[%emt 0:07:08]} Rdf8 {[%emt 0:02:28]} 12. Nf1 {[%emt 0:05:07]} Rh8 {[%emt 0:05:46]} 13. N3h2 {[%emt 0:05:32]} Rfg8 {[%emt 0:02:03]} 14. Ne3 {[%emt 0:03:31]} g5 {[%emt 0:03:04]} 15. Bd2 {[%emt 0:08:22]} h5 {[%emt 0:02:09]} 16. g4 {[%emt 0:05:16]} Bxe3 {[%emt 0:01:01]} 17. Rxe3 {[%emt 0:01:05]} hxg4 {[%emt 0:01:00]} 18. hxg4 {[%emt 0:00:47]} Rh7 {[%emt 0:01:01]} 19. Rg3 {[%emt 0:01:46]} Rgh8 {[%emt 0:00:27]} 20. Rg2 {[%emt 0:00:35]} Ne8 {[%emt 0:00:40]} 21. Qf3 {[%emt 0:01:08]} Nd4 {[%emt 0:01:16]} 22. Qe3 {[%emt 0:01:15]} Rh3 {[%emt 0:02:06]} 23. Qe1 {[%emt 0:00:41]} Nf3+ {[%emt 0:00:25]} 24. Kf1 {[%emt 0:01:58]} Nxe1 {[%emt 0:00:10]} 25. Rxe1 {[%emt 0:00:21]} Rxh2 {[%emt 0:00:12]} 26. Rxh2 {[%emt 0:00:32]} Rxh2 {[%emt 0:00:18]} 27. Kg1 {[%emt 0:01:48]} Rh4 {[%emt 0:00:16]} 28. Bd1 {[%emt 0:00:53]} Qf8 {[%emt 0:00:28]} 29. Bxg5 {[%emt 0:00:50]} Rh7 {[%emt 0:00:33]} 30. Kf1 {[%emt 0:01:59]} Qh8 {[%emt 0:00:21]} 31. Ke2 {[%emt 0:01:13]} Rh1 {[%emt 0:01:01]} 32. Bc2 {[%emt 0:00:58]} Rxe1+ {[%emt 0:00:19]} 33. Kxe1 {[%emt 0:00:11]} Qh1+ {[%emt 0:00:20]} 34. Ke2 {[%emt 0:00:12]} Qh3 {[%emt 0:00:49]} 35. f3 {[%emt 0:01:55]} Qg2+ {[%emt 0:00:16]} 36. Kd1 {[%emt 0:01:14]} Qxf3+ {[%emt 0:00:13]} 37. Kd2 {[%emt 0:00:26]} Qxg4 {[%emt 0:00:20]} 38. Be3 {[%emt 0:00:18]} f5 {[%emt 0:00:43]} 39. exf5 {[%emt 0:01:08]} Qxf5 {[%emt 0:00:08]} 40. d4 {[%emt 0:00:54]} Qf6 {[%emt 0:00:27]} 41. Kc3 {[%emt 0:16:18]} Qf3 {[%emt 0:15:21]} 42. Kd2 {[%emt 0:00:18]} Be4 {[%emt 0:00:22]} 43. Bh6 {[%emt 0:01:18]} Bxc2 {[%emt 0:00:20]} 44. Kxc2 {[%emt 0:00:11]} Qg2+ {[%emt 0:00:10]} 45. Kb1 {[%emt 0:00:31]} exd4 {[%emt 0:00:23]} 46. Bf4 {[%emt 0:01:34]} d3 {[%emt 0:00:09]} 47. a3 {[%emt 0:01:13]} d2 {[%emt 0:00:09]} 48. Bxd2 {[%emt 0:00:24]} Qxd2 {[%emt 0:00:08]} 49. Ka2 {[%emt 0:00:18]} d5 {[%emt 0:00:09]} 50. cxd5 {[%emt 0:00:13]} Qxd5+ {[%emt 0:00:07]} 51. Ka1 {[%emt 0:00:34]} c5 {[%emt 0:00:22]} 52. Kb1 {[%emt 0:00:23]} Qd1+ {[%emt 0:00:16]} 53. Ka2 {[%emt 0:00:09]} c4 {[%emt 0:00:07]} 54. a4 {[%emt 0:00:20]} Qxa4+ {[%emt 0:00:08]} 55. Kb1 {[%emt 0:00:13]} c3 {[%emt 0:00:10]} 56. bxc3 {[%emt 0:00:20]} Qb3+ {[%emt 0:00:09]} 57. Ka1 {[%emt 0:00:17]} Qxc3+ {[%emt 0:00:07]} 58. Kb1 {[%emt 0:00:26]} Nd6 {[%emt 0:00:14]} 59. Ka2 {[%emt 0:00:15]} Nc4 {[%emt 0:00:11]} 60. Kb1 {[%emt 0:00:08]} Qb2# {[%emt 0:00:06]} 0-1

[Event "GER-ch Youth U10W 2020"]
[Site "Willingen"]
[Date "2020.10.30"]
[Round "5.19"]
[White "Mo, Keyou"]
[Black "Heidtkamp, Anna"]
[Result "1-0"]
[ECO "C50"]
[WhiteElo "950"]
[BlackElo "1078"]
[Annotator "NA RC"]
[PlyCount "84"]
[EventDate "2020.10.27"]
[EventType "swiss"]
[EventRounds "7"]
[EventCountry "GER"]
[SourceTitle "playchess.com"]
[Source "ChessBase"]
[SourceQuality "1"]
[TimeControl "40/4500+30:900+30"]

1. e4 {[%emt 0:00:00]} e5 {[%emt 0:00:00]} 2. Nf3 {[%emt 0:00:00]} Nc6 {[%emt 0:00:00]} 3. Bc4 {[%emt 0:00:00]} Bc5 {[%emt 0:00:00]} 4. O-O {[%emt 0:00:00]} d6 {[%emt 0:00:00]} 5. d4 {[%emt 0:00:00]} exd4 {[%emt 0:00:36]} 6. c3 {[%emt 0:00:08]} dxc3 {[%emt 0:00:22]} 7. Nxc3 {[%emt 0:00:09]} Nf6 {[%emt 0:00:16]} 8. Re1 {[%emt 0:01:48]} Qe7 {[%emt 0:01:16]} 9. Nd5 {[%emt 0:01:35]} Qe6 {[%emt 0:00:57]} 10. Nxc7+ {[%emt 0:00:11]} Ke7 {[%emt 0:00:37]} 11. Bxe6 {[%emt 0:00:07]} Bxe6 {[%emt 0:00:11]} 12. Nxa8 {[%emt 0:00:12]} Rxa8 {[%emt 0:00:12]} 13. Be3 {[%emt 0:00:38]} Nxe4 {[%emt 0:00:36]} 14. Bg5+ {[%emt 0:00:53]} Nxg5 {[%emt 0:00:29]} 15. Nxg5 {[%emt 0:00:07]} h6 {[%emt 0:00:26]} 16. Nxe6 {[%emt 0:01:06]} fxe6 {[%emt 0:00:17]} 17. Qb3 {[%emt 0:00:28]} Kd7 {[%emt 0:03:49]} 18. Qxb7+ {[%emt 0:00:12]} Ke8 {[%emt 0:01:21]} 19. Rxe6+ {[%emt 0:00:19]} Kf8 {[%emt 0:03:33]} 20. Qxc6 {[%emt 0:01:15]} Rb8 {[%emt 0:01:57]} 21. g3 {[%emt 0:00:42]} Kg8 {[%emt 0:03:24]} 22. Rae1 {[%emt 0:03:00]} Kh7 {[%emt 0:05:53]} 23. R1e4 {[%emt 0:00:41]} Rb6 {[%emt 0:02:43]} 24. Qd7 {[%emt 0:00:31]} Rb8 {[%emt 0:01:42]} 25. Rg4 {[%emt 0:00:19]} Rg8 {[%emt 0:00:30]} 26. Reg6 {[%emt 0:00:22]} Bd4 {[%emt 0:02:17]} 27. b3 {[%emt 0:00:40]} Bc3 {[%emt 0:00:30]} 28. Kf1 {[%emt 0:00:31]} Bd4 29. Qxd6 {[%emt 0:00:11]} Ba1 {[%emt 0:03:13]} 30. b4 {[%emt 0:00:52]} Bb2 {[%emt 0:02:37]} 31. Qc7 a6 {[%emt 0:00:44]} 32. f4 {[%emt 0:01:45]} Ba1 {[%emt 0:03:35]} 33. f5 {[%emt 0:01:01]} Kh8 {[%emt 0:00:37]} 34. f6 {[%emt 0:00:09]} Bxf6 {[%emt 0:00:29]} 35. a4 {[%emt 0:01:29]} Ba1 {[%emt 0:00:30]} 36. b5 {[%emt 0:00:06]} axb5 {[%emt 0:00:07]} 37. axb5 {[%emt 0:00:04]} Rf8+ {[%emt 0:00:33]} 38. Kg2 {[%emt 0:00:19]} Rg8 {[%emt 0:01:49]} 39. b6 {[%emt 0:00:17]} Bb2 {[%emt 0:00:35]} 40. b7 {[%emt 0:00:11]} Ba1 {[%emt 0:00:13]} 41. b8=Q Rxb8 42. Rxg7 {[%emt 0:16:22]} Rb2+ {[%emt 0:16:04]} 1-0

[Event "GER-ch Youth U10W 2020"]
[Site "Willingen"]
[Date "2020.10.30"]
[Round "5.21"]
[White "Amrhein, Yana"]
[Black "Margaryan, Mari"]
[Result "1-0"]
[ECO "A04"]
[WhiteElo "747"]
[BlackElo "690"]
[Annotator "NA RC"]
[PlyCount "99"]
[EventDate "2020.10.27"]
[EventType "swiss"]
[EventRounds "7"]
[EventCountry "GER"]
[SourceTitle "playchess.com"]
[Source "ChessBase"]
[SourceQuality "1"]
[TimeControl "40/4500+30:900+30"]

1. Nf3 Nc6 {[%emt 0:00:00]} 2. d3 {[%emt 0:00:00]} e5 {[%emt 0:00:00]} 3. g3 {[%emt 0:00:01]} Nf6 {[%emt 0:00:03]} 4. Bg2 {[%emt 0:00:26]} Bc5 {[%emt 0:00:17]} 5. Nxe5 {[%emt 0:00:40]} Nxe5 {[%emt 0:00:30]} 6. d4 {[%emt 0:00:13]} Bxd4 {[%emt 0:00:28]} 7. Qxd4 {[%emt 0:00:21]} d6 {[%emt 0:00:17]} 8. O-O {[%emt 0:00:13]} O-O {[%emt 0:00:07]} 9. Qd1 {[%emt 0:00:07]} Bf5 {[%emt 0:00:14]} 10. b3 {[%emt 0:00:15]} Re8 {[%emt 0:00:31]} 11. Bb2 {[%emt 0:00:13]} Qd7 {[%emt 0:00:44]} 12. Bxb7 {[%emt 0:00:11]} Rab8 {[%emt 0:00:20]} 13. Bg2 {[%emt 0:00:14]} Bh3 {[%emt 0:00:24]} 14. Qd2 {[%emt 0:00:22]} Bxg2 {[%emt 0:00:36]} 15. Kxg2 {[%emt 0:00:06]} Qc6+ {[%emt 0:00:20]} 16. f3 {[%emt 0:00:28]} Ra8 {[%emt 0:00:47]} 17. Nc3 {[%emt 0:00:46]} h5 {[%emt 0:00:23]} 18. Rad1 {[%emt 0:00:46]} Kh7 {[%emt 0:00:44]} 19. Nd5 {[%emt 0:07:21]} Nxd5 {[%emt 0:00:38]} 20. Qxd5 {[%emt 0:00:16]} Qxd5 {[%emt 0:00:43]} 21. Rxd5 {[%emt 0:00:10]} c6 {[%emt 0:00:11]} 22. Rxd6 {[%emt 0:00:19]} Rad8 {[%emt 0:00:28]} 23. Bxe5 {[%emt 0:00:25]} f6 {[%emt 0:00:55]} 24. Rxd8 {[%emt 0:00:50]} Rxd8 {[%emt 0:00:17]} 25. Bc3 {[%emt 0:00:20]} Rh8 {[%emt 0:00:17]} 26. e4 {[%emt 0:00:22]} Kg8 {[%emt 0:00:11]} 27. Rd1 {[%emt 0:00:16]} h4 {[%emt 0:00:27]} 28. gxh4 {[%emt 0:00:06]} Rxh4 {[%emt 0:00:39]} 29. e5 {[%emt 0:00:11]} fxe5 {[%emt 0:00:32]} 30. Bxe5 {[%emt 0:00:10]} g5 {[%emt 0:00:15]} 31. Kg3 {[%emt 0:00:19]} Kh7 32. f4 {[%emt 0:00:13]} Kh6 {[%emt 0:00:57]} 33. fxg5+ {[%emt 0:00:10]} Kxg5 {[%emt 0:00:26]} 34. Kg2 {[%emt 0:00:16]} Kg4 {[%emt 0:00:22]} 35. Rd4+ {[%emt 0:00:09]} Kh5 {[%emt 0:00:25]} 36. Kg3 {[%emt 0:00:46]} Rg4+ {[%emt 0:00:55]} 37. Rxg4 {[%emt 0:00:12]} Kh6 {[%emt 0:00:31]} 38. a3 {[%emt 0:00:08]} a6 {[%emt 0:00:07]} 39. c4 {[%emt 0:00:05]} Kh7 {[%emt 0:00:33]} 40. h4 {[%emt 0:00:09]} Kh6 {[%emt 0:00:20]} 41. h5 {[%emt 0:15:10]} Kxh5 {[%emt 0:15:20]} 42. b4 {[%emt 0:00:11]} Kh6 {[%emt 0:00:26]} 43. a4 {[%emt 0:00:11]} Kh5 {[%emt 0:00:17]} 44. b5 {[%emt 0:00:07]} axb5 {[%emt 0:00:18]} 45. axb5 {[%emt 0:00:16]} cxb5 {[%emt 0:00:13]} 46. cxb5 {[%emt 0:00:09]} Kh6 {[%emt 0:00:18]} 47. b6 {[%emt 0:00:04]} Kh5 {[%emt 0:00:10]} 48. b7 {[%emt 0:00:05]} Kh6 {[%emt 0:00:07]} 49. b8=Q Kh5 50. Qh8# {[%emt 0:01:14]} 1-0

[Event "GER-ch Youth U10W 2020"]
[Site "Willingen"]
[Date "2020.10.30"]
[Round "6.1"]
[White "Czäczine, Paula"]
[Black "Sickmann, Lisa"]
[Result "0-1"]
[ECO "C45"]
[WhiteElo "1127"]
[BlackElo "1510"]
[Annotator "NA RC"]
[PlyCount "62"]
[EventDate "2020.10.27"]
[EventType "swiss"]
[EventRounds "7"]
[EventCountry "GER"]
[SourceTitle "playchess.com"]
[Source "ChessBase"]
[SourceQuality "1"]
[TimeControl "40/4500+30:900+30"]

1. e4 {[%emt 0:00:00]} e5 {[%emt 0:00:00]} 2. Nf3 {[%emt 0:00:00]} Nc6 {[%emt 0:00:00]} 3. d4 {[%emt 0:00:00]} exd4 {[%emt 0:00:00]} 4. Nxd4 {[%emt 0:00:08]} Nf6 {[%emt 0:00:00]} 5. Nxc6 {[%emt 0:00:17]} bxc6 {[%emt 0:00:17]} 6. e5 {[%emt 0:00:10]} Qe7 {[%emt 0:00:07]} 7. Qe2 {[%emt 0:00:09]} Nd5 {[%emt 0:00:12]} 8. c4 {[%emt 0:00:14]} Nb6 {[%emt 0:00:09]} 9. f4 {[%emt 0:05:11]} Qe6 {[%emt 0:03:17]} 10. Be3 {[%emt 0:04:57]} Be7 {[%emt 0:08:20]} 11. Qc2 {[%emt 0:04:06]} Bb7 {[%emt 0:01:18]} 12. Bd3 {[%emt 0:03:13]} d6 {[%emt 0:01:41]} 13. O-O {[%emt 0:05:49]} dxe5 {[%emt 0:01:17]} 14. fxe5 {[%emt 0:00:21]} g6 {[%emt 0:03:48]} 15. Qc3 {[%emt 0:07:22]} O-O-O {[%emt 0:02:43]} 16. Nd2 {[%emt 0:06:11]} Na4 {[%emt 0:02:00]} 17. Qc2 {[%emt 0:07:42]} Nc5 {[%emt 0:00:19]} 18. Bxc5 {[%emt 0:02:15]} Bxc5+ {[%emt 0:00:15]} 19. Kh1 {[%emt 0:00:22]} Qxe5 {[%emt 0:02:59]} 20. Rxf7 {[%emt 0:01:48]} Qe3 {[%emt 0:03:43]} 21. Rf3 {[%emt 0:02:24]} Qe5 {[%emt 0:02:28]} 22. Ne4 {[%emt 0:04:37]} Bd4 {[%emt 0:02:42]} 23. Rb1 {[%emt 0:01:24]} Rhf8 {[%emt 0:02:19]} 24. Rxf8 {[%emt 0:03:02]} Rxf8 {[%emt 0:00:08]} 25. c5 {[%emt 0:00:26]} Qf4 {[%emt 0:02:58]} 26. b4 {[%emt 0:02:19]} Be5 {[%emt 0:00:43]} 27. Ng3 {[%emt 0:00:23]} Qh4 {[%emt 0:00:32]} 28. Kg1 {[%emt 0:01:08]} Rf4 {[%emt 0:04:05]} 29. Qe2 {[%emt 0:03:21]} Bd4+ {[%emt 0:00:15]} 30. Kh1 {[%emt 0:00:21]} Qxh2+ {[%emt 0:00:06]} 31. Kxh2 {[%emt 0:00:17]} Rh4# 0-1